[Event "17th Memorial Lezcano Montalvo 2025"]
[Site "Gran Canaria"]
[Date "2025.04.16"]
[Round "5.25"]
[White "Camino Carrio, Nicanor"]
[Black "Perez Betancor, Jose Luis"]
[Result "1-0"]
[Annotator "NA RC"]
[ECO "C91"]
[WhiteElo "2045"]
[BlackElo "1782"]
[PlyCount "69"]
[EventDate "2025.04.13"]
[EventType "swiss"]
[EventCountry "ESP"]
[SourceTitle "playchess.com"]
[Source "ChessBase"]
[SourceQuality "1"]
[TimeControl "5400+30"]

1. e4 {[%emt 0:00:29]} e5 {[%emt 0:00:07]} 2. Nf3 {[%emt 0:00:11]} Nc6 {[%emt 0:00:08]} 3. Bb5 {[%emt 0:00:13]} a6 {[%emt 0:00:16]} 4. Ba4 {[%emt 0:00:38]} Nf6 {[%emt 0:00:37]} 5. O-O {[%emt 0:00:42]} d6 {[%emt 0:01:03]} 6. c3 {[%emt 0:01:21]} b5 {[%emt 0:01:47]} 7. Bb3 {[%emt 0:00:08]} Be7 {[%emt 0:00:57]} 8. Re1 {[%emt 0:01:48]} O-O {[%emt 0:00:32]} 9. d4 {[%emt 0:00:36]} Bg4 {[%emt 0:02:48]} 10. Be3 {[%emt 0:03:03]} Na5 {[%emt 0:04:41]} 11. Bc2 {[%emt 0:00:10]} Nc4 {[%emt 0:02:22]} 12. Bc1 {[%emt 0:00:19]} Nd7 {[%emt 0:05:03]} 13. b3 {[%emt 0:02:23]} Ncb6 {[%emt 0:00:37]} 14. a4 {[%emt 0:01:18]} b4 {[%emt 0:08:44]} 15. a5 {[%emt 0:04:29]} Nc8 {[%emt 0:00:18]} 16. Bb2 {[%emt 0:00:33]} bxc3 {[%emt 0:03:22]} 17. Nxc3 {[%emt 0:05:22]} exd4 {[%emt 0:03:43]} 18. Qxd4 {[%emt 0:00:12]} Bxf3 {[%emt 0:03:39]} 19. gxf3 {[%emt 0:03:33]} Ne5 {[%emt 0:00:52]} 20. Qe3 {[%emt 0:00:11]} c6 {[%emt 0:09:41]} 21. Kh1 {[%emt 0:01:16]} Rb8 {[%emt 0:04:19]} 22. Rg1 {[%emt 0:01:12]} Bf6 {[%emt 0:03:35]} 23. f4 {[%emt 0:06:09]} Nc4 {[%emt 0:01:12]} 24. bxc4 {[%emt 0:03:36]} Rxb2 {[%emt 0:00:12]} 25. Qd3 {[%emt 0:00:11]} g6 {[%emt 0:03:15]} 26. Ra3 {[%emt 0:04:04]} Bg7 {[%emt 0:02:45]} 27. Nd1 {[%emt 0:01:49]} Rb7 {[%emt 0:05:27]} 28. Ne3 {[%emt 0:00:43]} Qh4 {[%emt 0:01:39]} 29. f5 {[%emt 0:15:36]} Qxf2 {[%emt 0:04:40]} 30. Ng4 {[%emt 0:00:52]} Qh4 {[%emt 0:05:25]} 31. Qf1 {[%emt 0:01:01]} Bd4 {[%emt 0:07:23]} 32. Rh3 {[%emt 0:01:09]} Qe7 {[%emt 0:00:33]} 33. f6 {[%emt 0:00:50]} Qe6 {[%emt 0:04:32]} 34. Qf4 {[%emt 0:00:28]} Qe7 {[%emt 0:03:36]} 35. Ra1 {[%emt 0:00:01]} 1-0

[Event "17th Memorial Lezcano Montalvo 2025"]
[Site "Gran Canaria"]
[Date "2025.04.16"]
[Round "5.27"]
[White "Schmitz, Manuela"]
[Black "Hernando Rodrigo, Jose Maria"]
[Result "0-1"]
[Annotator "RC"]
[ECO "E92"]
[WhiteElo "1815"]
[BlackElo "2256"]
[PlyCount "56"]
[EventDate "2025.04.13"]
[EventType "swiss"]
[EventCountry "ESP"]
[SourceTitle "playchess.com"]
[Source "ChessBase"]
[SourceQuality "1"]
[TimeControl "5400+30"]

1. d4 {[%emt 0:00:02]} Nf6 {[%emt 0:00:06]} 2. Nf3 {[%emt 0:00:08]} g6 {[%emt 0:00:14]} 3. c4 {[%emt 0:00:11]} Bg7 {[%emt 0:00:07]} 4. Nc3 {[%emt 0:00:18]} O-O {[%emt 0:01:18]} 5. e4 {[%emt 0:00:16]} d6 {[%emt 0:00:14]} 6. Be2 {[%emt 0:00:16]} e5 {[%emt 0:00:17]} 7. Be3 {[%emt 0:00:16]} exd4 {[%emt 0:00:25]} 8. Nxd4 {[%emt 0:00:13]} Re8 {[%emt 0:00:06]} 9. Qc2 {[%emt 0:00:31]} Na6 {[%emt 0:09:04]} 10. f3 {[%emt 0:01:33]} c6 {[%emt 0:00:36]} 11. O-O-O {[%emt 0:02:40]} d5 {[%emt 0:04:15]} 12. Bg5 {[%emt 0:10:12]} h6 {[%emt 0:07:13]} 13. Bh4 {[%emt 0:00:28]} c5 {[%emt 0:11:46]} 14. Nb3 {[%emt 0:01:06]} d4 {[%emt 0:01:07]} 15. Nd5 {[%emt 0:00:41]} Be6 {[%emt 0:01:06]} 16. g4 {[%emt 0:04:21]} Bxd5 {[%emt 0:02:31]} 17. exd5 {[%emt 0:01:27]} Nb4 {[%emt 0:03:06]} 18. Qd2 {[%emt 0:00:12]} Nxa2+ {[%emt 0:00:26]} 19. Kb1 {[%emt 0:00:05]} Nb4 {[%emt 0:00:05]} 20. Bf2 {[%emt 0:04:30]} Qb6 {[%emt 0:04:53]} 21. Nc1 {[%emt 0:01:30]} Qa5 {[%emt 0:04:47]} 22. Bd3 {[%emt 0:03:14]} b5 {[%emt 0:03:35]} 23. Rhe1 {[%emt 0:00:28]} Red8 {[%emt 0:00:54]} 24. Re7 {[%emt 0:01:21]} Rd6 {[%emt 0:00:48]} 25. b3 {[%emt 0:03:42]} bxc4 {[%emt 0:03:45]} 26. Bxc4 {[%emt 0:00:39]} Qd8 {[%emt 0:00:12]} 27. Rde1 {[%emt 0:01:13]} Nbxd5 {[%emt 0:41:04]} 28. Nd3 {[%emt 0:02:37]} Nxe7 {[%emt 0:00:00]} 0-1

[Event "17th Memorial Lezcano Montalvo 2025"]
[Site "Gran Canaria"]
[Date "2025.04.16"]
[Round "5.28"]
[White "Brito Garcia, Alfredo"]
[Black "Vargas Tinoco, Martin Alonso"]
[Result "1-0"]
[Annotator "RC"]
[ECO "D02"]
[WhiteElo "2214"]
[BlackElo "1811"]
[PlyCount "67"]
[EventDate "2025.04.13"]
[EventType "swiss"]
[EventCountry "ESP"]
[SourceTitle "playchess.com"]
[Source "ChessBase"]
[SourceQuality "1"]
[TimeControl "5400+30"]

1. d4 {[%emt 0:00:10]} d5 {[%emt 0:00:06]} 2. Nf3 {[%emt 0:00:04]} e6 {[%emt 0:00:11]} 3. g3 {[%emt 0:00:05]} a6 {[%emt 0:00:34]} 4. Bg2 {[%emt 0:00:18]} c5 {[%emt 0:00:54]} 5. O-O {[%emt 0:01:00]} Nf6 {[%emt 0:00:47]} 6. a4 {[%emt 1:31:53]} Be7 {[%emt 0:04:03]} 7. c4 {[%emt 0:00:00]} dxc4 {[%emt 0:00:25]} 8. dxc5 {[%emt 0:00:00]} O-O {[%emt 0:06:20]} 9. Nbd2 {[%emt 0:00:00]} c3 {[%emt 0:05:10]} 10. bxc3 {[%emt 0:00:00]} Nbd7 {[%emt 0:01:18]} 11. c6 {[%emt 0:00:00]} bxc6 {[%emt 0:00:03]} 12. Nd4 {[%emt 0:00:00]} Bb7 {[%emt 0:02:02]} 13. Bxc6 {[%emt 0:00:00]} Qc7 {[%emt 0:06:50]} 14. Bxb7 {[%emt 0:00:00]} Qxb7 {[%emt 0:01:42]} 15. Qb3 {[%emt 0:00:00]} Qc7 {[%emt 0:00:22]} 16. Ba3 {[%emt 0:00:00]} Bxa3 {[%emt 0:07:18]} 17. Rxa3 {[%emt 0:00:00]} Rab8 {[%emt 0:07:39]} 18. Qc4 {[%emt 0:00:00]} Qd6 {[%emt 0:04:45]} 19. Qa2 {[%emt 0:00:00]} Rfc8 {[%emt 0:02:25]} 20. N4f3 {[%emt 0:00:00]} Ne5 {[%emt 0:10:40]} 21. c4 {[%emt 0:00:00]} h6 {[%emt 0:19:36]} 22. Rc3 {[%emt 0:00:00]} Nd5 {[%emt 0:08:54]} 23. Rcc1 {[%emt 0:00:00]} Nb4 {[%emt 0:00:34]} 24. Qa1 {[%emt 0:00:00]} Nxf3+ {[%emt 0:02:18]} 25. Nxf3 {[%emt 0:00:00]} Rc5 {[%emt 0:01:14]} 26. Rfd1 {[%emt 0:00:00]} Qc7 {[%emt 0:00:08]} 27. Nd2 {[%emt 0:00:00]} Rc8 {[%emt 0:01:17]} 28. Ne4 {[%emt 0:00:00]} Rc6 {[%emt 0:00:20]} 29. c5 {[%emt 0:00:08]} Qa5 {[%emt 0:03:32]} 30. Rd7 {[%emt 0:02:30]} R8c7 {[%emt 0:00:52]} 31. Rd8+ {[%emt 0:00:57]} Kh7 {[%emt 0:00:06]} 32. Nf6+ {[%emt 0:01:24]} gxf6 {[%emt 0:01:14]} 33. Qxf6 {[%emt 0:00:21]} Rc8 {[%emt 0:00:16]} 34. Qxf7# {[%emt 0:00:41]} 1-0

[Event "17th Memorial Lezcano Montalvo 2025"]
[Site "Gran Canaria"]
[Date "2025.04.16"]
[Round "5.29"]
[White "Garcia Padron, Juan"]
[Black "Sanchez Montesdeoca, Isaac"]
[Result "1-0"]
[Annotator "RC"]
[ECO "B52"]
[WhiteElo "2155"]
[BlackElo "1807"]
[PlyCount "129"]
[EventDate "2025.04.13"]
[EventType "swiss"]
[EventCountry "ESP"]
[SourceTitle "playchess.com"]
[Source "ChessBase"]
[SourceQuality "1"]
[TimeControl "5400+30"]

1. e4 {[%emt 0:00:02]} c5 {[%emt 0:00:10]} 2. Nf3 {[%emt 0:00:59]} d6 {[%emt 0:00:25]} 3. Nc3 {[%emt 0:01:38]} Nf6 {[%emt 0:00:08]} 4. Bb5+ {[%emt 0:00:05]} Bd7 {[%emt 0:01:47]} 5. a4 {[%emt 1:30:16]} Nc6 {[%emt 0:00:23]} 6. O-O {[%emt 0:00:00]} e6 {[%emt 0:00:04]} 7. Re1 {[%emt 0:00:00]} Be7 {[%emt 0:00:10]} 8. Bf1 {[%emt 0:00:00]} O-O {[%emt 0:00:09]} 9. d3 {[%emt 0:00:00]} Re8 {[%emt 0:04:47]} 10. h3 {[%emt 0:00:00]} a6 {[%emt 0:02:02]} 11. g4 {[%emt 0:00:00]} Kh8 {[%emt 0:02:28]} 12. Bg2 {[%emt 0:00:00]} Rb8 {[%emt 0:00:46]} 13. Ne2 {[%emt 0:00:00]} b5 {[%emt 0:01:00]} 14. axb5 {[%emt 0:00:00]} axb5 {[%emt 0:00:06]} 15. Ng3 {[%emt 0:00:00]} c4 {[%emt 0:03:38]} 16. d4 {[%emt 0:00:00]} b4 {[%emt 0:00:25]} 17. Nd2 {[%emt 0:00:00]} Nxd4 {[%emt 0:01:37]} 18. Nxc4 {[%emt 0:00:00]} e5 {[%emt 0:02:08]} 19. Be3 {[%emt 0:00:00]} Qc7 {[%emt 0:01:42]} 20. Bf1 {[%emt 0:00:00]} Be6 {[%emt 0:02:20]} 21. b3 {[%emt 0:00:00]} d5 {[%emt 0:04:18]} 22. exd5 {[%emt 0:08:30]} Nxd5 {[%emt 0:02:38]} 23. Bxd4 {[%emt 0:00:00]} exd4 {[%emt 0:00:11]} 24. Qf3 {[%emt 0:00:00]} Nf4 {[%emt 0:03:58]} 25. Nf5 {[%emt 0:00:00]} Bd5 {[%emt 0:02:30]} 26. Qg3 {[%emt 0:00:00]} Bc5 {[%emt 0:01:22]} 27. Bd3 {[%emt 0:00:00]} g6 {[%emt 0:01:13]} 28. Nh6 {[%emt 0:00:00]} Kg7 {[%emt 0:02:02]} 29. g5 {[%emt 0:00:00]} Be6 {[%emt 0:04:51]} 30. Ng4 {[%emt 0:00:00]} Bd7 {[%emt 0:04:59]} 31. Nf6 {[%emt 0:00:00]} Nxh3+ {[%emt 0:00:49]} 32. Kh2 {[%emt 0:00:00]} Qxg3+ {[%emt 0:00:49]} 33. Kxg3 {[%emt 0:00:00]} Rxe1 {[%emt 0:01:08]} 34. Rxe1 {[%emt 0:00:00]} Bc8 {[%emt 0:01:03]} 35. f4 {[%emt 0:00:00]} h6 {[%emt 0:00:42]} 36. Re5 {[%emt 0:00:00]} Bf8 {[%emt 0:01:49]} 37. Bf1 {[%emt 0:00:00]} Ng1 {[%emt 0:03:11]} 38. Re8 {[%emt 0:00:00]} hxg5 {[%emt 0:00:42]} 39. fxg5 {[%emt 0:00:00]} Rb5 {[%emt 0:01:38]} 40. Rxc8 {[%emt 0:00:00]} Rxg5+ {[%emt 0:00:22]} 41. Kf2 {[%emt 0:00:00]} d3 {[%emt 0:04:01]} 42. Ne8+ {[%emt 0:00:00]} Kh6 {[%emt 0:00:59]} 43. cxd3 {[%emt 0:00:00]} Bc5+ {[%emt 0:00:14]} 44. Rxc5 {[%emt 0:00:00]} Rxc5 {[%emt 0:00:45]} 45. Kxg1 {[%emt 0:00:00]} Kg5 {[%emt 0:01:12]} 46. Bg2 {[%emt 0:00:00]} f5 {[%emt 0:01:00]} 47. d4 {[%emt 0:00:00]} Rc8 {[%emt 0:00:14]} 48. Ned6 {[%emt 0:00:00]} Rf8 {[%emt 0:01:25]} 49. Kf2 {[%emt 0:00:00]} Kf4 {[%emt 0:00:17]} 50. Ne3 {[%emt 0:00:00]} Rd8 {[%emt 0:00:56]} 51. Nd5+ {[%emt 0:00:00]} Kg4 {[%emt 0:38:27]} 52. Bf3+ {[%emt 0:00:00]} Kh4 {[%emt 0:00:00]} 53. Nf7 {[%emt 0:01:54]} Rg8 {[%emt 0:00:00]} 54. Ne3 {[%emt 0:00:23]} Rf8 {[%emt 0:00:00]} 55. Ng2+ {[%emt 0:00:26]} Kh3 {[%emt 0:00:00]} 56. Nf4+ {[%emt 0:00:59]} Kh2 {[%emt 0:00:00]} 57. Ng5 {[%emt 0:00:09]} Rc8 {[%emt 0:00:00]} 58. Be2 {[%emt 0:00:26]} Rc3 {[%emt 0:00:00]} 59. d5 {[%emt 0:00:38]} Rxb3 {[%emt 0:00:00]} 60. d6 {[%emt 0:00:11]} Rb2 {[%emt 0:00:00]} 61. Nf3+ {[%emt 0:00:13]} Kh1 {[%emt 0:00:00]} 62. Nd3 {[%emt 0:00:32]} Ra2 {[%emt 0:00:00]} 63. d7 {[%emt 0:00:03]} Ra8 {[%emt 0:00:00]} 64. d8=Q {[%emt 0:15:06]} Rxd8 {[%emt 0:00:00]} 65. Bf1 {[%emt 0:00:00]} 1-0

[Event "17th Memorial Lezcano Montalvo 2025"]
[Site "Gran Canaria"]
[Date "2025.04.16"]
[Round "5.30"]
[White "Juan Miguel, Javier"]
[Black "Cruz Pino, Adrian"]
[Result "1/2-1/2"]
[Annotator "RC"]
[ECO "D00"]
[WhiteElo "1803"]
[BlackElo "2099"]
[PlyCount "267"]
[EventDate "2025.04.13"]
[EventType "swiss"]
[EventCountry "ESP"]
[SourceTitle "playchess.com"]
[Source "ChessBase"]
[SourceQuality "1"]
[TimeControl "5400+30"]

1. d4 {[%emt 0:00:09]} d5 {[%emt 0:00:16]} 2. e3 {[%emt 0:00:10]} c6 {[%emt 0:00:13]} 3. Bd3 {[%emt 0:00:29]} Nf6 {[%emt 0:00:04]} 4. b3 {[%emt 0:02:28]} g6 {[%emt 0:00:06]} 5. Bb2 {[%emt 0:00:14]} Bg7 {[%emt 0:00:05]} 6. Nd2 {[%emt 0:00:31]} O-O {[%emt 0:00:06]} 7. Ngf3 {[%emt 0:00:23]} a5 {[%emt 0:00:17]} 8. c4 {[%emt 0:02:45]} Na6 {[%emt 0:01:18]} 9. a3 {[%emt 0:00:24]} Bg4 {[%emt 0:04:52]} 10. h3 {[%emt 0:04:17]} Bxf3 {[%emt 0:01:05]} 11. Nxf3 {[%emt 0:00:54]} e6 {[%emt 0:01:12]} 12. c5 {[%emt 0:07:01]} Nd7 {[%emt 0:00:19]} 13. Bxa6 {[%emt 0:05:33]} Rxa6 {[%emt 0:00:11]} 14. b4 {[%emt 0:00:32]} Qa8 {[%emt 0:01:16]} 15. O-O {[%emt 0:02:13]} b6 {[%emt 0:09:32]} 16. Qc2 {[%emt 0:02:45]} Qb7 {[%emt 0:00:22]} 17. Bc3 {[%emt 0:05:14]} axb4 {[%emt 0:00:30]} 18. axb4 {[%emt 0:02:07]} Rfa8 {[%emt 0:00:19]} 19. Rxa6 {[%emt 0:07:05]} Rxa6 {[%emt 0:00:14]} 20. Rb1 {[%emt 0:03:49]} b5 {[%emt 0:02:02]} 21. Ra1 {[%emt 0:01:53]} Bf6 {[%emt 0:00:08]} 22. Qb2 {[%emt 0:02:11]} Bd8 {[%emt 0:01:30]} 23. Rxa6 {[%emt 0:01:28]} Qxa6 {[%emt 0:00:02]} 24. Nd2 {[%emt 0:03:11]} Qa4 {[%emt 0:01:13]} 25. Qb3 {[%emt 0:00:22]} Qxb3 {[%emt 0:00:07]} 26. Nxb3 {[%emt 0:00:06]} Bc7 {[%emt 0:00:06]} 27. Kf1 {[%emt 0:02:51]} f6 {[%emt 0:00:55]} 28. Ke2 {[%emt 0:00:57]} Kf7 {[%emt 0:00:04]} 29. f4 {[%emt 0:03:06]} Ke7 {[%emt 0:05:40]} 30. Kf3 {[%emt 0:02:06]} f5 {[%emt 0:04:22]} 31. Be1 {[%emt 0:07:29]} Kf7 {[%emt 0:00:04]} 32. Bh4 {[%emt 0:01:15]} h6 {[%emt 0:00:07]} 33. g4 {[%emt 0:02:19]} fxg4+ {[%emt 0:00:06]} 34. hxg4 {[%emt 0:00:11]} Nb8 {[%emt 0:00:13]} 35. Nc1 {[%emt 0:00:27]} Na6 {[%emt 0:00:37]} 36. Nd3 {[%emt 0:00:31]} Nb8 {[%emt 0:00:08]} 37. e4 {[%emt 0:02:36]} dxe4+ {[%emt 0:01:57]} 38. Kxe4 {[%emt 0:00:08]} Nd7 {[%emt 0:00:05]} 39. Kf3 {[%emt 0:06:49]} h5 {[%emt 0:07:29]} 40. Bg5 {[%emt 0:04:38]} Nf8 {[%emt 0:04:27]} 41. Bh6 {[%emt 0:02:28]} Nd7 {[%emt 0:03:07]} 42. Ne5+ {[%emt 0:02:51]} Bxe5 {[%emt 0:00:20]} 43. fxe5 {[%emt 0:00:08]} Nb8 {[%emt 0:00:34]} 44. Kg3 {[%emt 0:01:04]} Na6 {[%emt 0:00:09]} 45. Bd2 {[%emt 0:00:05]} Nc7 {[%emt 0:00:08]} 46. Kf4 {[%emt 0:02:23]} Nd5+ {[%emt 0:00:11]} 47. Kg5 {[%emt 0:00:17]} hxg4 {[%emt 0:00:11]} 48. Kxg4 {[%emt 0:00:07]} Ne7 {[%emt 0:01:18]} 49. Be3 {[%emt 0:01:22]} Nf5 {[%emt 0:00:04]} 50. Bf2 {[%emt 0:00:06]} Kg7 {[%emt 0:00:06]} 51. Kg5 {[%emt 0:00:30]} Nh6 {[%emt 0:05:53]} 52. Be3 {[%emt 0:01:05]} Nf7+ {[%emt 0:00:05]} 53. Kg4 {[%emt 0:00:19]} Nh6+ {[%emt 0:03:07]} 54. Kg5 {[%emt 0:00:31]} Nf5 {[%emt 0:00:07]} 55. Bf2 {[%emt 0:00:06]} Kf7 {[%emt 0:00:29]} 56. Kg4 {[%emt 0:00:34]} Kg8 {[%emt 0:00:27]} 57. Kf4 {[%emt 0:01:35]} Kh7 {[%emt 0:00:06]} 58. Kg5 {[%emt 0:01:55]} Kg7 {[%emt 0:02:16]} 59. Bg1 {[%emt 0:00:26]} Ng3 {[%emt 0:00:18]} 60. Be3 {[%emt 0:00:26]} Ne2 {[%emt 0:02:39]} 61. Kg4 {[%emt 0:01:22]} Kf7 {[%emt 0:01:56]} 62. Kf3 {[%emt 0:01:04]} Nc3 {[%emt 0:00:08]} 63. Bd2 {[%emt 0:00:40]} Nb1 {[%emt 0:02:07]} 64. Bc1 {[%emt 0:01:23]} Kg7 {[%emt 0:00:17]} 65. Ke3 {[%emt 0:00:58]} Nc3 {[%emt 0:01:50]} 66. Bd2 {[%emt 0:00:34]} Nd5+ {[%emt 0:00:13]} 67. Kf3 {[%emt 0:00:19]} g5 {[%emt 0:00:14]} 68. Kg3 {[%emt 0:00:43]} Kf7 {[%emt 0:00:30]} 69. Kh3 {[%emt 0:00:25]} Kg6 {[%emt 0:01:11]} 70. Kg4 {[%emt 0:00:06]} Ne7 {[%emt 0:00:06]} 71. Bxg5 {[%emt 0:00:46]} Nf5 {[%emt 0:00:03]} 72. d5 {[%emt 0:00:14]} exd5 {[%emt 0:00:06]} 73. e6 {[%emt 0:00:07]} Nd4 {[%emt 0:01:10]} 74. e7 {[%emt 0:00:14]} Kf7 {[%emt 0:00:04]} 75. Bh4 {[%emt 0:00:49]} Nc2 {[%emt 0:00:25]} 76. Kf4 {[%emt 0:00:23]} Nxb4 {[%emt 0:00:11]} 77. Ke5 {[%emt 0:00:14]} Ke8 {[%emt 0:01:35]} 78. Kd6 {[%emt 0:00:57]} d4 {[%emt 0:00:06]} 79. Be1 {[%emt 0:00:19]} Nc2 {[%emt 0:00:33]} 80. Kxc6 {[%emt 0:01:32]} d3 {[%emt 0:04:48]} 81. Kb7 {[%emt 0:01:16]} Nxe1 {[%emt 0:04:00]} 82. c6 {[%emt 0:00:04]} d2 {[%emt 0:00:03]} 83. c7 {[%emt 0:00:07]} d1=Q {[%emt 0:35:10]} 84. c8=Q+ {[%emt 0:05:59]} Kxe7 {[%emt 0:00:00]} 85. Qc5+ {[%emt 0:00:00]} Ke6 {[%emt 0:00:00]} 86. Qxb5 {[%emt 0:00:00]} Nd3 {[%emt 0:00:00]} 87. Qe8+ {[%emt 0:00:00]} Kd5 {[%emt 0:00:00]} 88. Qd7+ {[%emt 0:00:00]} Kc4 {[%emt 0:00:00]} 89. Qe6+ {[%emt 0:00:00]} Kc3 {[%emt 0:03:00]} 90. Qc6+ {[%emt 0:00:00]} Kb3 {[%emt 0:00:00]} 91. Qd5+ {[%emt 0:00:00]} Ka3 {[%emt 0:00:00]} 92. Qa5+ {[%emt 0:00:00]} Kb2 {[%emt 0:00:00]} 93. Qb5+ {[%emt 0:00:00]} Ka1 {[%emt 0:00:00]} 94. Qa5+ {[%emt 0:00:00]} Kb1 {[%emt 0:00:00]} 95. Qb5+ {[%emt 0:00:00]} Nb2 {[%emt 0:00:00]} 96. Qf5+ {[%emt 0:00:00]} Ka2 {[%emt 0:00:00]} 97. Qe6+ {[%emt 0:00:00]} Ka3 {[%emt 0:00:00]} 98. Qe3+ {[%emt 0:00:11]} Kb4 {[%emt 0:00:00]} 99. Qb6+ {[%emt 0:00:15]} Kc3 {[%emt 0:00:00]} 100. Qc6+ {[%emt 0:00:41]} Nc4 {[%emt 0:00:00]} 101. Qf6+ {[%emt 0:00:08]} Kb3 {[%emt 0:00:00]} 102. Qe6 {[%emt 0:01:07]} Qd4 {[%emt 0:00:00]} 103. Qh3+ {[%emt 0:00:11]} Kb4 {[%emt 0:00:00]} 104. Qe6 {[%emt 0:03:01]} Qg7+ {[%emt 0:00:00]} 105. Kb8 {[%emt 0:01:07]} Qf8+ {[%emt 0:00:00]} 106. Qc8 {[%emt 0:00:21]} Qf4+ {[%emt 0:00:00]} 107. Qc7 {[%emt 0:00:12]} Nd6 {[%emt 0:00:00]} 108. Qe7 {[%emt 0:00:42]} Kb5 {[%emt 0:00:00]} 109. Qd7+ {[%emt 0:00:14]} Kc5 {[%emt 0:00:00]} 110. Qc7+ {[%emt 0:00:57]} Kd5 {[%emt 0:00:00]} 111. Qd7 {[%emt 0:01:13]} Qb4+ {[%emt 0:00:00]} 112. Ka8 {[%emt 0:00:29]} Qa5+ {[%emt 0:00:00]} 113. Qa7 {[%emt 0:00:22]} Qb5 {[%emt 0:00:00]} 114. Qa2+ {[%emt 0:00:26]} Ke5 {[%emt 0:00:00]} 115. Qh2+ {[%emt 0:00:19]} Ke6 {[%emt 0:00:00]} 116. Qh3+ {[%emt 0:00:24]} Ke7 {[%emt 0:00:00]} 117. Qe3+ {[%emt 0:00:20]} Kf7 {[%emt 0:00:00]} 118. Qf4+ {[%emt 0:00:18]} Ke7 {[%emt 0:00:00]} 119. Qe3+ {[%emt 0:00:05]} Kd7 {[%emt 0:00:00]} 120. Qh3+ {[%emt 0:00:38]} Kc7 {[%emt 0:00:00]} 121. Qc3+ {[%emt 0:00:16]} Kd8 {[%emt 0:00:00]} 122. Qf6+ {[%emt 0:00:24]} Kd7 {[%emt 0:00:00]} 123. Qg7+ {[%emt 0:00:22]} Kc8 {[%emt 0:00:00]} 124. Qg4+ {[%emt 0:00:38]} Kd8 {[%emt 0:00:00]} 125. Qh4+ {[%emt 0:00:46]} Kc7 {[%emt 0:00:00]} 126. Qh7+ {[%emt 0:00:06]} Kb6 {[%emt 0:00:00]} 127. Qa7+ {[%emt 0:00:21]} Kc6 {[%emt 0:00:00]} 128. Qb8 {[%emt 0:00:36]} Qa6+ {[%emt 0:00:00]} 129. Qa7 {[%emt 0:00:05]} Qc4 {[%emt 0:00:00]} 130. Qb8 {[%emt 0:00:45]} Qe4 {[%emt 0:00:00]} 131. Qb3 {[%emt 0:01:58]} Kc7+ {[%emt 0:00:00]} 132. Ka7 {[%emt 0:00:33]} Qc6 {[%emt 0:00:00]} 133. Qf7+ {[%emt 0:00:46]} Kd8 {[%emt 0:00:00]} 134. Qf6+ {[%emt 0:03:43]} 1/2-1/2

[Event "17th Memorial Lezcano Montalvo 2025"]
[Site "Gran Canaria"]
[Date "2025.04.16"]
[Round "5.31"]
[White "Oramas Medina, Miguel"]
[Black "Roquero Redondo, Miguel"]
[Result "0-1"]
[Annotator "NA RC"]
[ECO "B51"]
[WhiteElo "1796"]
[BlackElo "2037"]
[PlyCount "83"]
[EventDate "2025.04.13"]
[EventType "swiss"]
[EventCountry "ESP"]
[SourceTitle "playchess.com"]
[Source "ChessBase"]
[SourceQuality "1"]
[TimeControl "5400+30"]

1. e4 {[%emt 0:00:03]} c5 {[%emt 0:00:05]} 2. Nf3 {[%emt 0:00:08]} d6 {[%emt 0:00:05]} 3. Bb5+ {[%emt 0:00:11]} Nd7 {[%emt 0:00:15]} 4. c3 {[%emt 0:00:09]} Ngf6 {[%emt 0:00:19]} 5. Qe2 {[%emt 0:00:07]} e6 {[%emt 0:03:03]} 6. O-O {[%emt 0:02:29]} a6 {[%emt 0:02:45]} 7. Ba4 {[%emt 0:00:06]} Be7 {[%emt 0:00:41]} 8. d4 {[%emt 0:02:26]} b5 {[%emt 0:03:06]} 9. Bc2 {[%emt 0:00:08]} Bb7 {[%emt 0:01:43]} 10. Re1 {[%emt 0:07:09]} Rc8 {[%emt 0:06:56]} 11. Nbd2 {[%emt 0:08:09]} cxd4 {[%emt 0:01:37]} 12. Nxd4 {[%emt 0:02:03]} O-O {[%emt 0:01:18]} 13. N2f3 {[%emt 0:09:59]} Qc7 {[%emt 0:06:16]} 14. Bg5 {[%emt 0:13:24]} Rfe8 {[%emt 0:05:52]} 15. h3 {[%emt 0:03:31]} Bf8 {[%emt 0:10:38]} 16. Bxf6 {[%emt 0:11:19]} Nxf6 {[%emt 0:01:03]} 17. Rad1 {[%emt 0:02:05]} g6 {[%emt 0:06:24]} 18. e5 {[%emt 0:03:18]} dxe5 {[%emt 0:01:16]} 19. Nxe5 {[%emt 0:00:05]} Red8 {[%emt 0:06:05]} 20. Ndf3 {[%emt 0:04:58]} Bd6 {[%emt 0:08:43]} 21. Nd4 {[%emt 0:10:04]} Bxe5 {[%emt 0:07:13]} 22. Qxe5 {[%emt 0:00:06]} Qxe5 {[%emt 0:00:05]} 23. Rxe5 {[%emt 0:00:07]} b4 {[%emt 0:00:07]} 24. Ne2 {[%emt 0:07:36]} Nd5 {[%emt 0:00:56]} 25. Bb3 {[%emt 0:04:25]} bxc3 {[%emt 0:01:57]} 26. bxc3 {[%emt 0:00:07]} Re8 {[%emt 0:01:22]} 27. c4 {[%emt 0:02:40]} Nb6 {[%emt 0:01:34]} 28. Rd4 {[%emt 0:03:51]} Rc7 {[%emt 0:03:42]} 29. c5 {[%emt 0:02:08]} Nd7 {[%emt 0:02:38]} 30. Rxd7 {[%emt 0:01:05]} Rxd7 {[%emt 0:00:08]} 31. Ba4 {[%emt 0:00:04]} Rde7 {[%emt 0:02:43]} 32. Bxe8 {[%emt 0:00:11]} Rxe8 {[%emt 0:00:03]} 33. Nd4 {[%emt 0:01:20]} Rc8 {[%emt 0:01:11]} 34. Nb3 {[%emt 0:00:54]} Bd5 {[%emt 0:00:24]} 35. Kf1 {[%emt 0:00:15]} Kg7 {[%emt 0:00:52]} 36. g3 {[%emt 0:00:18]} a5 {[%emt 0:01:15]} 37. f4 {[%emt 0:01:11]} a4 {[%emt 0:00:34]} 38. Nd2 {[%emt 0:00:48]} Rxc5 {[%emt 0:00:39]} 39. Ke1 {[%emt 0:01:03]} Rc2 {[%emt 0:00:23]} 40. Kd1 {[%emt 0:00:00]} Rxa2 {[%emt 0:00:25]} 41. Re3 {[%emt 0:00:00]} a3 {[%emt 0:01:20]} 42. Nb1 {[%emt 0:01:30]} 0-1